[Event "Titled Tuesday Blitz March 22 Early 2022"]
[White "Griffith, Kyron"]
[Black "Demchenko, Anton"]
[WhiteFideId "2046318"]
[BlackFideId "4160258"]
[WhiteElo "2232"]
[BlackElo "2539"]
[Result "1-0"]
[Round "05"]
[TimeControl "180+1"]
[Date "2022.03.22"]
[WhiteClock "0:00:15"]
[BlackClock "0:00:04"]

1. e4 {[%clk 0:03:00]}  e5 {[%clk 0:02:58]} 2. Nf3 {[%clk 0:03:00]}  Nc6 {[%clk 0:02:58]} 3. Nc3 {[%clk 0:02:59]}  Nf6 {[%clk 0:02:58]} 4. d4 {[%clk 0:02:59]}  exd4 {[%clk 0:02:59]} 5. Nxd4 {[%clk 0:03:00]}  Bc5 {[%clk 0:02:59]} 6. Be3 {[%clk 0:02:59]}  Bb6 {[%clk 0:02:59]} 7. Qd2 {[%clk 0:02:58]}  Ng4 {[%clk 0:02:59]} 8. Nxc6 {[%clk 0:02:52]}  dxc6 {[%clk 0:02:53]} 9. Qxd8+ {[%clk 0:02:47]}  Kxd8 {[%clk 0:02:54]} 10. Bxb6 {[%clk 0:02:46]}  axb6 {[%clk 0:02:55]} 11. h3 {[%clk 0:02:42]}  Nh6 {[%clk 0:02:51]} 12. Bc4 {[%clk 0:02:33]}  Ke7 {[%clk 0:02:51]} 13. Bb3 {[%clk 0:02:25]}  f6 {[%clk 0:02:41]} 14. O-O-O {[%clk 0:02:20]}  b5 {[%clk 0:02:37]} 15. a3 {[%clk 0:02:16]}  Be6 {[%clk 0:02:24]} 16. Bxe6 {[%clk 0:02:14]}  Kxe6 {[%clk 0:02:25]} 17. f4 {[%clk 0:02:12]}  Nf7 {[%clk 0:02:24]} 18. Ne2 {[%clk 0:01:57]}  Ke7 {[%clk 0:02:24]} 19. Nd4 {[%clk 0:01:54]}  g6 {[%clk 0:02:24]} 20. Rhe1 {[%clk 0:01:52]}  Rhd8 {[%clk 0:02:21]} 21. c3 {[%clk 0:01:50]}  Re8 {[%clk 0:02:08]} 22. g4 {[%clk 0:01:44]}  Kf8 {[%clk 0:02:03]} 23. Kc2 {[%clk 0:01:40]}  Re7 {[%clk 0:02:00]} 24. f5 {[%clk 0:01:38]}  Rae8 {[%clk 0:01:33]} 25. Ne6+ {[%clk 0:01:36]}  Kg8 {[%clk 0:01:18]} 26. h4 {[%clk 0:01:32]}  Ne5 {[%clk 0:01:02]} 27. Rg1 {[%clk 0:01:18]}  Kf7 {[%clk 0:00:57]} 28. Rg3 {[%clk 0:01:15]}  Rxe6 {[%clk 0:00:54]} 29. fxe6+ {[%clk 0:01:15]}  Kxe6 {[%clk 0:00:55]} 30. g5 {[%clk 0:01:09]}  Rf8 {[%clk 0:00:49]} 31. Rf1 {[%clk 0:01:05]}  Nd7 {[%clk 0:00:34]} 32. Rgf3 {[%clk 0:00:59]}  Ke5 {[%clk 0:00:32]} 33. R3f2 {[%clk 0:00:50]}  Rf7 {[%clk 0:00:28]} 34. b3 {[%clk 0:00:43]}  h6 {[%clk 0:00:20]} 35. gxf6 {[%clk 0:00:28]}  Nxf6 {[%clk 0:00:21]} 36. Kd3 {[%clk 0:00:23]}  Rd7+ {[%clk 0:00:20]} 37. Kc2 {[%clk 0:00:20]}  Nxe4 {[%clk 0:00:19]} 38. Re2 {[%clk 0:00:20]}  g5 {[%clk 0:00:03]} 39. hxg5 {[%clk 0:00:18]}  hxg5 {[%clk 0:00:04]} 40. Rfe1 {[%clk 0:00:18]}  Rg7 {[%clk 0:00:04]} 41. Rxe4+ {[%clk 0:00:18]}  Kf6 {[%clk 0:00:05]} 42. Rf1+ {[%clk 0:00:19]}  Kg6 {[%clk 0:00:06]} 43. Rg1 {[%clk 0:00:18]}  Kf5 {[%clk 0:00:04]} 44. Re2 {[%clk 0:00:16]}  g4 {[%clk 0:00:05]} 45. Rf2+ {[%clk 0:00:16]}  Ke4 {[%clk 0:00:04]} 46. Kd2 {[%clk 0:00:16]}  Rd7+ {[%clk 0:00:03]} 47. Ke2 {[%clk 0:00:16]}  Rg7 {[%clk 0:00:04]} 48. Rf6 {[%clk 0:00:14]}  c5 {[%clk 0:00:03]} 49. Rf8 {[%clk 0:00:14]}  c6 {[%clk 0:00:03]} 50. Rg3 {[%clk 0:00:13]}  c4 {[%clk 0:00:02]} 51. bxc4 {[%clk 0:00:13]}  bxc4 {[%clk 0:00:02]} 52. Rd8 {[%clk 0:00:13]}  c5 {[%clk 0:00:02]} 53. Rf8 {[%clk 0:00:12]}  Ke5 {[%clk 0:00:02]} 54. Ke3 {[%clk 0:00:11]}  Kd5 {[%clk 0:00:02]} 55. Rf5+ {[%clk 0:00:12]}  Kc6 {[%clk 0:00:03]} 56. Rf4 {[%clk 0:00:12]}  Kb5 {[%clk 0:00:03]} 57. Rgxg4 {[%clk 0:00:12]}  Re7+ {[%clk 0:00:02]} 58. Re4 {[%clk 0:00:13]}  Rh7 {[%clk 0:00:02]} 59. Rxc4 {[%clk 0:00:13]}  Rh2 {[%clk 0:00:02]} 60. Rcf4 {[%clk 0:00:13]}  Ra2 {[%clk 0:00:02]} 61. Kd3 {[%clk 0:00:13]}  Rxa3 {[%clk 0:00:02]} 62. Rf5 {[%clk 0:00:13]}  Ra1 {[%clk 0:00:01]} 63. Rgg5 {[%clk 0:00:13]}  b6 {[%clk 0:00:01]} 64. Rf6 {[%clk 0:00:13]}  Rd1+ {[%clk 0:00:02]} 65. Kc2 {[%clk 0:00:14]}  Rd7 {[%clk 0:00:02]} 66. Rgg6 {[%clk 0:00:14]}  Rb7 {[%clk 0:00:03]} 67. Kb3 {[%clk 0:00:15]}  Rb8 {[%clk 0:00:03]} 68. c4+ {[%clk 0:00:15]}  Ka5 {[%clk 0:00:03]} 69. Rf7 {[%clk 0:00:15]}  Ka6 {[%clk 0:00:03]} 70. Rgg7 {[%clk 0:00:16]}  b5 {[%clk 0:00:03]} 71. Rg6+ {[%clk 0:00:15]}  Rb6 {[%clk 0:00:02]} 72. Rxb6+ {[%clk 0:00:15]}  Kxb6 {[%clk 0:00:03]} 73. Rf6+ {[%clk 0:00:15]}  Ka5 {[%clk 0:00:04]} 1-0


[Site "https://www.chess.com"]

[Event "Titled Tuesday Blitz March 22 Early 2022"]
[White "Gubanov, Oleg"]
[Black "Le Ruyet, Leopold"]
[WhiteFideId "14115115"]
[BlackFideId "645923"]
[WhiteElo "2080"]
[BlackElo "2276"]
[Result "1/2-1/2"]
[Round "05"]
[TimeControl "180+1"]
[Date "2022.03.22"]
[WhiteClock "0:00:22"]
[BlackClock "0:00:13"]

1. e4 {[%clk 0:02:57]}  e6 {[%clk 0:02:58]} 2. d4 {[%clk 0:02:57]}  d5 {[%clk 0:02:58]} 3. Nc3 {[%clk 0:02:57]}  Bb4 {[%clk 0:02:57]} 4. Ne2 {[%clk 0:02:57]}  Nf6 {[%clk 0:02:55]} 5. e5 {[%clk 0:02:53]}  Nfd7 {[%clk 0:02:55]} 6. a3 {[%clk 0:02:52]}  Be7 {[%clk 0:02:51]} 7. Be3 {[%clk 0:02:41]}  c5 {[%clk 0:02:47]} 8. f4 {[%clk 0:02:41]}  Nc6 {[%clk 0:02:45]} 9. Qd2 {[%clk 0:02:35]}  a6 {[%clk 0:02:38]} 10. g3 {[%clk 0:02:34]}  b5 {[%clk 0:02:33]} 11. Bg2 {[%clk 0:02:30]}  Bb7 {[%clk 0:02:23]} 12. O-O {[%clk 0:02:29]}  g6 {[%clk 0:02:10]} 13. Kh1 {[%clk 0:02:05]}  h5 {[%clk 0:02:07]} 14. dxc5 {[%clk 0:01:45]}  Nxc5 {[%clk 0:01:35]} 15. Nd4 {[%clk 0:01:40]}  Nd7 {[%clk 0:01:16]} 16. a4 {[%clk 0:01:35]}  b4 {[%clk 0:01:15]} 17. Nce2 {[%clk 0:01:35]}  h4 {[%clk 0:01:13]} 18. g4 {[%clk 0:01:33]}  h3 {[%clk 0:01:12]} 19. Bf3 {[%clk 0:01:33]}  g5 {[%clk 0:01:12]} 20. Nxc6 {[%clk 0:01:29]}  Bxc6 {[%clk 0:01:11]} 21. Nd4 {[%clk 0:01:24]}  Bb7 {[%clk 0:01:10]} 22. f5 {[%clk 0:00:53]}  Nxe5 {[%clk 0:01:08]} 23. fxe6 {[%clk 0:00:53]}  fxe6 {[%clk 0:00:59]} 24. Nxe6 {[%clk 0:00:53]}  Qd7 {[%clk 0:00:59]} 25. Nd4 {[%clk 0:00:40]}  O-O-O {[%clk 0:00:36]} 26. Bxg5 {[%clk 0:00:32]}  Bxg5 {[%clk 0:00:34]} 27. Qxg5 {[%clk 0:00:32]}  Nxf3 {[%clk 0:00:30]} 28. Rxf3 {[%clk 0:00:32]}  Rdg8 {[%clk 0:00:29]} 29. Qf5 {[%clk 0:00:30]}  Rxg4 {[%clk 0:00:27]} 30. Qxd7+ {[%clk 0:00:25]}  Kxd7 {[%clk 0:00:28]} 31. Rf7+ {[%clk 0:00:25]}  Kc8 {[%clk 0:00:28]} 32. Rd1 {[%clk 0:00:25]}  Re8 {[%clk 0:00:23]} 33. Rf3 {[%clk 0:00:24]}  Ree4 {[%clk 0:00:21]} 34. c3 {[%clk 0:00:24]}  bxc3 {[%clk 0:00:20]} 35. bxc3 {[%clk 0:00:25]}  Rg2 {[%clk 0:00:15]} 36. Rxh3 {[%clk 0:00:21]}  Ra2 {[%clk 0:00:15]} 37. Rh7 {[%clk 0:00:19]}  Rb2 {[%clk 0:00:08]} 38. Rg1 {[%clk 0:00:19]}  Kb8 {[%clk 0:00:06]} 39. Rf1 {[%clk 0:00:16]}  Ka7 {[%clk 0:00:06]} 40. h4 {[%clk 0:00:16]}  Kb6 {[%clk 0:00:05]} 41. h5 {[%clk 0:00:16]}  Kc5 {[%clk 0:00:06]} 42. Rc7+ {[%clk 0:00:15]}  Kd6 {[%clk 0:00:05]} 43. Rg7 {[%clk 0:00:15]}  Rh4+ {[%clk 0:00:04]} 44. Kg1 {[%clk 0:00:15]}  Rxh5 {[%clk 0:00:05]} 45. Rg2 {[%clk 0:00:15]}  Rxg2+ {[%clk 0:00:04]} 46. Kxg2 {[%clk 0:00:16]}  Kc5 {[%clk 0:00:04]} 47. Rf7 {[%clk 0:00:16]}  Bc6 {[%clk 0:00:04]} 48. Rc7 {[%clk 0:00:16]}  Rh6 {[%clk 0:00:05]} 49. Kf3 {[%clk 0:00:16]}  Kb6 {[%clk 0:00:05]} 50. Rxc6+ {[%clk 0:00:16]}  Rxc6 {[%clk 0:00:06]} 51. Nxc6 {[%clk 0:00:17]}  Kxc6 {[%clk 0:00:07]} 52. Ke3 {[%clk 0:00:17]}  Kc5 {[%clk 0:00:08]} 53. Kd3 {[%clk 0:00:18]}  a5 {[%clk 0:00:08]} 54. Kd2 {[%clk 0:00:18]}  Kc4 {[%clk 0:00:09]} 55. Kc2 {[%clk 0:00:18]}  d4 {[%clk 0:00:09]} 56. cxd4 {[%clk 0:00:19]}  Kxd4 {[%clk 0:00:10]} 57. Kb2 {[%clk 0:00:19]}  Kc4 {[%clk 0:00:10]} 58. Ka3 {[%clk 0:00:20]}  Kc3 {[%clk 0:00:11]} 59. Ka2 {[%clk 0:00:21]}  Kb4 {[%clk 0:00:12]} 60. Ka1 {[%clk 0:00:21]}  Kxa4 {[%clk 0:00:13]} 61. Ka2 {[%clk 0:00:22]}  Kb4 {[%clk 0:00:12]} 62. Ka1 {[%clk 0:00:23]}  Ka4 {[%clk 0:00:12]} 63. Ka2 {[%clk 0:00:22]}  Kb4 {[%clk 0:00:13]} 64. Ka1 {[%clk 0:00:22]}  Ka4 {[%clk 0:00:13]} 1/2-1/2


[Site "https://www.chess.com"]

[Event "Titled Tuesday Blitz March 22 Early 2022"]
[White "Guseva, Marina"]
[Black "Khamzin, Olzhas"]
[WhiteFideId "4149351"]
[BlackFideId "13701690"]
[WhiteElo "2160"]
[BlackElo "2194"]
[Result "0-1"]
[Round "05"]
[TimeControl "180+1"]
[Date "2022.03.22"]
[WhiteClock "0:00:10"]
[BlackClock "0:00:30"]

1. d4 {[%clk 0:03:00]}  Nf6 {[%clk 0:02:58]} 2. Nf3 {[%clk 0:02:59]}  e6 {[%clk 0:02:58]} 3. Bf4 {[%clk 0:02:59]}  d6 {[%clk 0:02:59]} 4. e3 {[%clk 0:02:57]}  Be7 {[%clk 0:02:59]} 5. h3 {[%clk 0:02:56]}  Nbd7 {[%clk 0:03:00]} 6. Nc3 {[%clk 0:02:51]}  a6 {[%clk 0:03:01]} 7. a4 {[%clk 0:02:51]}  c5 {[%clk 0:02:59]} 8. a5 {[%clk 0:02:41]}  Qc7 {[%clk 0:02:57]} 9. Be2 {[%clk 0:02:20]}  h6 {[%clk 0:02:55]} 10. O-O {[%clk 0:02:19]}  g5 {[%clk 0:02:55]} 11. Bh2 {[%clk 0:02:18]}  g4 {[%clk 0:02:55]} 12. hxg4 {[%clk 0:02:14]}  Nxg4 {[%clk 0:02:56]} 13. Bf4 {[%clk 0:02:13]}  h5 {[%clk 0:02:57]} 14. dxc5 {[%clk 0:02:11]}  Nxc5 {[%clk 0:02:56]} 15. b4 {[%clk 0:02:03]}  Nd7 {[%clk 0:02:54]} 16. Ne4 {[%clk 0:02:00]}  e5 {[%clk 0:02:53]} 17. Bg5 {[%clk 0:01:55]}  Ndf6 {[%clk 0:02:47]} 18. Nxf6+ {[%clk 0:01:50]}  Nxf6 {[%clk 0:02:48]} 19. Bh4 {[%clk 0:01:48]}  Bf5 {[%clk 0:02:42]} 20. c4 {[%clk 0:01:47]}  Rg8 {[%clk 0:02:33]} 21. Kh1 {[%clk 0:01:40]}  Rg4 {[%clk 0:02:32]} 22. g3 {[%clk 0:01:13]}  Be4 {[%clk 0:02:27]} 23. Kh2 {[%clk 0:01:08]}  O-O-O {[%clk 0:02:24]} 24. Ng5 {[%clk 0:01:05]}  Bg6 {[%clk 0:01:41]} 25. f3 {[%clk 0:00:59]}  Rxh4+ {[%clk 0:01:39]} 26. gxh4 {[%clk 0:00:59]}  e4 {[%clk 0:01:35]} 27. f4 {[%clk 0:00:58]}  d5 {[%clk 0:01:34]} 28. cxd5 {[%clk 0:00:56]}  Rxd5 {[%clk 0:01:35]} 29. Rc1 {[%clk 0:00:53]}  Rxd1 {[%clk 0:01:32]} 30. Rxc7+ {[%clk 0:00:53]}  Kxc7 {[%clk 0:01:32]} 31. Rxd1 {[%clk 0:00:51]}  Bxb4 {[%clk 0:01:32]} 32. Ra1 {[%clk 0:00:44]}  Bd2 {[%clk 0:01:32]} 33. Ra3 {[%clk 0:00:43]}  Nd5 {[%clk 0:01:27]} 34. Bc4 {[%clk 0:00:40]}  Nxe3 {[%clk 0:01:22]} 35. Bxf7 {[%clk 0:00:37]}  Ng4+ {[%clk 0:01:22]} 36. Kg3 {[%clk 0:00:36]}  Be1+ {[%clk 0:01:20]} 37. Kg2 {[%clk 0:00:34]}  Bxf7 {[%clk 0:01:14]} 38. Nxf7 {[%clk 0:00:33]}  Bxh4 {[%clk 0:01:15]} 39. Rh3 {[%clk 0:00:31]}  Be7 {[%clk 0:01:04]} 40. Rxh5 {[%clk 0:00:30]}  Bb4 {[%clk 0:01:04]} 41. Ne5 {[%clk 0:00:17]}  Nf6 {[%clk 0:00:49]} 42. Rf5 {[%clk 0:00:16]}  Nd5 {[%clk 0:00:47]} 43. Nc4 {[%clk 0:00:16]}  Kc6 {[%clk 0:00:38]} 44. Re5 {[%clk 0:00:15]}  Nxf4+ {[%clk 0:00:29]} 45. Kg3 {[%clk 0:00:15]}  Nd3 {[%clk 0:00:29]} 46. Rxe4 {[%clk 0:00:14]}  Nc5 {[%clk 0:00:30]} 47. Rg4 {[%clk 0:00:13]}  Kb5 {[%clk 0:00:30]} 48. Rg5 {[%clk 0:00:10]}  Kxc4 {[%clk 0:00:30]} 49. Kf3 {[%clk 0:00:10]}  Kb5 {[%clk 0:00:30]} 0-1


[Site "https://www.chess.com"]

[Event "Titled Tuesday Blitz March 22 Early 2022"]
[White "Harish, Neeraj"]
[Black "Kashefi, Amir Hosein"]
[WhiteFideId "30958130"]
[BlackFideId "12557935"]
[WhiteElo "1574"]
[BlackElo "2107"]
[Result "0-1"]
[Round "05"]
[TimeControl "180+1"]
[Date "2022.03.22"]
[WhiteClock "0:00:07"]
[BlackClock "0:00:39"]

1. e4 {[%clk 0:03:00]}  c6 {[%clk 0:02:57]} 2. d4 {[%clk 0:03:00]}  d5 {[%clk 0:02:53]} 3. Nc3 {[%clk 0:02:51]}  dxe4 {[%clk 0:02:47]} 4. Nxe4 {[%clk 0:02:51]}  Nd7 {[%clk 0:02:40]} 5. Nf3 {[%clk 0:02:50]}  Ngf6 {[%clk 0:02:35]} 6. Nxf6+ {[%clk 0:02:44]}  Nxf6 {[%clk 0:02:33]} 7. Bd3 {[%clk 0:02:44]}  Bg4 {[%clk 0:02:31]} 8. Be3 {[%clk 0:02:40]}  e6 {[%clk 0:02:22]} 9. c3 {[%clk 0:02:17]}  Be7 {[%clk 0:02:10]} 10. h3 {[%clk 0:01:35]}  Bh5 {[%clk 0:01:59]} 11. g4 {[%clk 0:01:31]}  Bg6 {[%clk 0:01:56]} 12. Ne5 {[%clk 0:01:24]}  Nd7 {[%clk 0:01:53]} 13. Bxg6 {[%clk 0:01:04]}  hxg6 {[%clk 0:01:44]} 14. Qd2 {[%clk 0:00:55]}  Nxe5 {[%clk 0:01:43]} 15. dxe5 {[%clk 0:00:56]}  Qxd2+ {[%clk 0:01:43]} 16. Bxd2 {[%clk 0:00:54]}  O-O-O {[%clk 0:01:44]} 17. O-O-O {[%clk 0:00:53]}  Bc5 {[%clk 0:01:41]} 18. f4 {[%clk 0:00:49]}  Rd3 {[%clk 0:01:35]} 19. Kc2 {[%clk 0:00:46]}  Rdxh3 {[%clk 0:01:31]} 20. Rxh3 {[%clk 0:00:45]}  Rxh3 {[%clk 0:01:32]} 21. b4 {[%clk 0:00:42]}  Bb6 {[%clk 0:01:14]} 22. Rf1 {[%clk 0:00:33]}  Rh4 {[%clk 0:01:10]} 23. f5 {[%clk 0:00:31]}  gxf5 {[%clk 0:01:00]} 24. gxf5 {[%clk 0:00:30]}  Kd7 {[%clk 0:01:01]} 25. Rf3 {[%clk 0:00:15]}  exf5 {[%clk 0:00:58]} 26. Rxf5 {[%clk 0:00:16]}  Ke6 {[%clk 0:00:57]} 27. Rg5 {[%clk 0:00:16]}  g6 {[%clk 0:00:55]} 28. c4 {[%clk 0:00:12]}  Rxc4+ {[%clk 0:00:52]} 29. Kb3 {[%clk 0:00:13]}  Rd4 {[%clk 0:00:50]} 30. Bc3 {[%clk 0:00:12]}  Rd1 {[%clk 0:00:47]} 31. Kc2 {[%clk 0:00:12]}  Rg1 {[%clk 0:00:45]} 32. Rxg1 {[%clk 0:00:11]}  Bxg1 {[%clk 0:00:46]} 33. Kd3 {[%clk 0:00:12]}  Kd5 {[%clk 0:00:43]} 34. a3 {[%clk 0:00:11]}  a6 {[%clk 0:00:42]} 35. a4 {[%clk 0:00:10]}  Bh2 {[%clk 0:00:40]} 36. Ke2 {[%clk 0:00:07]}  Bxe5 {[%clk 0:00:39]} 0-1


[Site "https://www.chess.com"]

[Event "Titled Tuesday Blitz March 22 Early 2022"]
[White "Horcajuelo Rocamora, Martin"]
[Black "Thomas, Anysia"]
[WhiteFideId "24573027"]
[BlackFideId "670472"]
[WhiteElo "1706"]
[BlackElo "2002"]
[Result "1-0"]
[Round "05"]
[TimeControl "180+1"]
[Date "2022.03.22"]
[WhiteClock "0:00:08"]
[BlackClock "0:00:09"]

1. e4 {[%clk 0:02:58]}  c5 {[%clk 0:02:18]} 2. Nf3 {[%clk 0:02:33]}  g6 {[%clk 0:02:17]} 3. d4 {[%clk 0:02:33]}  cxd4 {[%clk 0:02:16]} 4. Nxd4 {[%clk 0:02:33]}  Nc6 {[%clk 0:02:16]} 5. c4 {[%clk 0:02:30]}  Nf6 {[%clk 0:02:15]} 6. Nc3 {[%clk 0:02:30]}  d6 {[%clk 0:02:15]} 7. Be2 {[%clk 0:02:29]}  Nxd4 {[%clk 0:02:14]} 8. Qxd4 {[%clk 0:02:29]}  Bg7 {[%clk 0:02:15]} 9. Qd3 {[%clk 0:02:26]}  O-O {[%clk 0:02:15]} 10. Be3 {[%clk 0:02:17]}  Be6 {[%clk 0:02:15]} 11. O-O {[%clk 0:02:07]}  Qa5 {[%clk 0:02:15]} 12. Rac1 {[%clk 0:01:52]}  Rfc8 {[%clk 0:02:12]} 13. b3 {[%clk 0:01:45]}  Ng4 {[%clk 0:01:25]} 14. Bxg4 {[%clk 0:01:25]}  Bxg4 {[%clk 0:01:23]} 15. f3 {[%clk 0:01:25]}  Be6 {[%clk 0:01:21]} 16. Rfd1 {[%clk 0:01:24]}  a6 {[%clk 0:01:20]} 17. Bd4 {[%clk 0:01:01]}  Bh6 {[%clk 0:00:47]} 18. Rc2 {[%clk 0:00:46]}  b5 {[%clk 0:00:42]} 19. cxb5 {[%clk 0:00:33]}  axb5 {[%clk 0:00:41]} 20. g3 {[%clk 0:00:28]}  Bg7 {[%clk 0:00:30]} 21. Bxg7 {[%clk 0:00:26]}  Kxg7 {[%clk 0:00:30]} 22. Qd4+ {[%clk 0:00:26]}  Kg8 {[%clk 0:00:29]} 23. Rdd2 {[%clk 0:00:27]}  b4 {[%clk 0:00:19]} 24. Ne2 {[%clk 0:00:26]}  Rxc2 {[%clk 0:00:16]} 25. Rxc2 {[%clk 0:00:27]}  Rc8 {[%clk 0:00:17]} 26. Rxc8+ {[%clk 0:00:26]}  Bxc8 {[%clk 0:00:18]} 27. Qd2 {[%clk 0:00:25]}  Ba6 {[%clk 0:00:16]} 28. Nf4 {[%clk 0:00:24]}  Qc5+ {[%clk 0:00:16]} 29. Kg2 {[%clk 0:00:24]}  Qb5 {[%clk 0:00:16]} 30. Qc1 {[%clk 0:00:18]}  Kg7 {[%clk 0:00:14]} 31. Qb2+ {[%clk 0:00:17]}  Kg8 {[%clk 0:00:13]} 32. Qc1 {[%clk 0:00:17]}  e5 {[%clk 0:00:12]} 33. Nd5 {[%clk 0:00:17]}  Qe2+ {[%clk 0:00:11]} 34. Kg1 {[%clk 0:00:16]}  Qxf3 {[%clk 0:00:10]} 35. Qe1 {[%clk 0:00:11]}  Bd3 {[%clk 0:00:09]} 36. h4 {[%clk 0:00:07]}  Bxe4 {[%clk 0:00:09]} 37. Qxe4 {[%clk 0:00:07]}  Qxe4 {[%clk 0:00:09]} 38. Nf6+ {[%clk 0:00:08]}  Kg7 {[%clk 0:00:08]} 39. Nxe4 {[%clk 0:00:08]}  d5 {[%clk 0:00:07]} 40. Nc5 {[%clk 0:00:08]}  f5 {[%clk 0:00:06]} 41. Na6 {[%clk 0:00:08]}  Kf6 {[%clk 0:00:06]} 42. Nxb4 {[%clk 0:00:08]}  d4 {[%clk 0:00:07]} 43. a4 {[%clk 0:00:07]}  e4 {[%clk 0:00:07]} 44. Kf2 {[%clk 0:00:07]}  Ke5 {[%clk 0:00:07]} 45. a5 {[%clk 0:00:06]}  e3+ {[%clk 0:00:08]} 46. Ke2 {[%clk 0:00:06]}  f4 {[%clk 0:00:08]} 47. gxf4+ {[%clk 0:00:06]}  Kxf4 {[%clk 0:00:08]} 48. a6 {[%clk 0:00:07]}  Ke4 {[%clk 0:00:08]} 49. a7 {[%clk 0:00:08]}  d3+ {[%clk 0:00:09]} 50. Nxd3 {[%clk 0:00:08]} 1-0


[Site "https://www.chess.com"]

[Event "Titled Tuesday Blitz March 22 Early 2022"]
[White "Jary, Sergey"]
[Black "Devaev, Alexander"]
[WhiteFideId "14110350"]
[BlackFideId "4169395"]
[WhiteElo "2260"]
[BlackElo "2185"]
[Result "1-0"]
[Round "05"]
[TimeControl "180+1"]
[Date "2022.03.22"]
[WhiteClock "0:01:10"]
[BlackClock "0:00:03"]

1. e4 {[%clk 0:03:00]}  c6 {[%clk 0:02:17]} 2. d4 {[%clk 0:02:59]}  d5 {[%clk 0:02:10]} 3. Nd2 {[%clk 0:02:59]}  dxe4 {[%clk 0:02:09]} 4. Nxe4 {[%clk 0:02:59]}  Nf6 {[%clk 0:02:10]} 5. Ng3 {[%clk 0:02:53]}  Bg4 {[%clk 0:02:00]} 6. Nf3 {[%clk 0:02:51]}  Nbd7 {[%clk 0:01:59]} 7. Be2 {[%clk 0:02:45]}  e6 {[%clk 0:01:59]} 8. O-O {[%clk 0:02:40]}  Bd6 {[%clk 0:02:00]} 9. h3 {[%clk 0:02:39]}  Bxf3 {[%clk 0:01:58]} 10. Bxf3 {[%clk 0:02:37]}  Qc7 {[%clk 0:01:56]} 11. Ne2 {[%clk 0:02:22]}  O-O {[%clk 0:01:55]} 12. g3 {[%clk 0:02:21]}  Rad8 {[%clk 0:01:46]} 13. c3 {[%clk 0:02:21]}  e5 {[%clk 0:01:44]} 14. Bg2 {[%clk 0:02:18]}  exd4 {[%clk 0:01:37]} 15. Nxd4 {[%clk 0:02:16]}  Be5 {[%clk 0:01:29]} 16. Nf5 {[%clk 0:02:12]}  Nc5 {[%clk 0:01:25]} 17. Qc2 {[%clk 0:02:07]}  Rfe8 {[%clk 0:00:51]} 18. Bg5 {[%clk 0:02:06]}  h6 {[%clk 0:00:50]} 19. Be3 {[%clk 0:01:54]}  Ncd7 {[%clk 0:00:28]} 20. Rad1 {[%clk 0:01:54]}  Nf8 {[%clk 0:00:22]} 21. b4 {[%clk 0:01:52]}  a6 {[%clk 0:00:20]} 22. a4 {[%clk 0:01:48]}  Ne6 {[%clk 0:00:17]} 23. c4 {[%clk 0:01:43]}  Nf8 {[%clk 0:00:07]} 24. c5 {[%clk 0:01:32]}  Qb8 {[%clk 0:00:08]} 25. Rxd8 {[%clk 0:01:27]}  Rxd8 {[%clk 0:00:07]} 26. f4 {[%clk 0:01:17]}  Bc7 {[%clk 0:00:07]} 27. Kh2 {[%clk 0:01:18]}  Ne6 {[%clk 0:00:04]} 28. Rb1 {[%clk 0:01:14]}  Qc8 {[%clk 0:00:03]} 29. Ne7+ {[%clk 0:01:10]} 1-0


[Site "https://www.chess.com"]

[Event "Titled Tuesday Blitz March 22 Early 2022"]
[White "Jaskolka, Tomasz"]
[Black "Bongo Akanga Ndjila, Barthelemy"]
[WhiteFideId "1170791"]
[BlackFideId "10609431"]
[WhiteElo "2073"]
[BlackElo "1803"]
[Result "0-1"]
[Round "05"]
[TimeControl "180+1"]
[Date "2022.03.22"]
[WhiteClock "0:00:12"]
[BlackClock "0:00:10"]

1. d4 {[%clk 0:03:00]}  d6 {[%clk 0:02:55]} 2. Nc3 {[%clk 0:02:58]}  g6 {[%clk 0:02:54]} 3. e4 {[%clk 0:02:56]}  Bg7 {[%clk 0:02:54]} 4. Bf4 {[%clk 0:02:56]}  Nd7 {[%clk 0:02:53]} 5. Nf3 {[%clk 0:02:46]}  e5 {[%clk 0:02:53]} 6. dxe5 {[%clk 0:02:44]}  dxe5 {[%clk 0:02:49]} 7. Bg5 {[%clk 0:02:45]}  Bf6 {[%clk 0:02:44]} 8. Be3 {[%clk 0:02:42]}  Ne7 {[%clk 0:02:43]} 9. Bc4 {[%clk 0:02:37]}  O-O {[%clk 0:02:42]} 10. h4 {[%clk 0:02:37]}  Nb6 {[%clk 0:02:29]} 11. Bb3 {[%clk 0:02:33]}  a5 {[%clk 0:02:27]} 12. a4 {[%clk 0:02:20]}  Bg4 {[%clk 0:02:26]} 13. Qe2 {[%clk 0:02:14]}  Nc6 {[%clk 0:02:22]} 14. Nd5 {[%clk 0:02:07]}  Nxd5 {[%clk 0:02:20]} 15. Bxd5 {[%clk 0:02:06]}  Nd4 {[%clk 0:02:19]} 16. Bxd4 {[%clk 0:01:44]}  exd4 {[%clk 0:02:18]} 17. Qd3 {[%clk 0:01:44]}  c6 {[%clk 0:02:15]} 18. Bb3 {[%clk 0:01:44]}  Qd6 {[%clk 0:02:01]} 19. Kf1 {[%clk 0:01:32]}  c5 {[%clk 0:01:56]} 20. Re1 {[%clk 0:01:29]}  Rae8 {[%clk 0:01:37]} 21. Bd5 {[%clk 0:01:02]}  b6 {[%clk 0:01:34]} 22. b3 {[%clk 0:01:01]}  Bg7 {[%clk 0:01:25]} 23. g3 {[%clk 0:00:59]}  Be6 {[%clk 0:01:13]} 24. Bxe6 {[%clk 0:00:54]}  Rxe6 {[%clk 0:01:12]} 25. Kg2 {[%clk 0:00:51]}  Rfe8 {[%clk 0:01:12]} 26. h5 {[%clk 0:00:50]}  Qc6 {[%clk 0:00:57]} 27. hxg6 {[%clk 0:00:46]}  hxg6 {[%clk 0:00:56]} 28. Ng5 {[%clk 0:00:30]}  Re5 {[%clk 0:00:53]} 29. f4 {[%clk 0:00:28]}  R5e7 {[%clk 0:00:52]} 30. Qc4 {[%clk 0:00:19]}  Bf6 {[%clk 0:00:39]} 31. Nh7 {[%clk 0:00:14]}  Kg7 {[%clk 0:00:38]} 32. Nxf6 {[%clk 0:00:14]}  Kxf6 {[%clk 0:00:36]} 33. Kf2 {[%clk 0:00:09]}  Rxe4 {[%clk 0:00:35]} 34. Rxe4 {[%clk 0:00:09]}  Qxe4 {[%clk 0:00:35]} 35. Rf1 {[%clk 0:00:08]}  Qe3+ {[%clk 0:00:34]} 36. Kg2 {[%clk 0:00:08]}  Qe2+ {[%clk 0:00:32]} 37. Rf2 {[%clk 0:00:05]}  Qxc4 {[%clk 0:00:30]} 38. bxc4 {[%clk 0:00:06]}  Re3 {[%clk 0:00:29]} 39. g4 {[%clk 0:00:05]}  Rc3 {[%clk 0:00:29]} 40. Re2 {[%clk 0:00:05]}  Rxc4 {[%clk 0:00:28]} 41. Re8 {[%clk 0:00:06]}  Rxc2+ {[%clk 0:00:27]} 42. Kf3 {[%clk 0:00:06]}  Ra2 {[%clk 0:00:25]} 43. Rb8 {[%clk 0:00:06]}  Rb2 {[%clk 0:00:24]} 44. Ke4 {[%clk 0:00:06]}  Rb4 {[%clk 0:00:23]} 45. g5+ {[%clk 0:00:06]}  Kg7 {[%clk 0:00:22]} 46. Rd8 {[%clk 0:00:06]}  Rxa4 {[%clk 0:00:20]} 47. f5 {[%clk 0:00:06]}  gxf5+ {[%clk 0:00:19]} 48. Kxf5 {[%clk 0:00:07]}  Ra3 {[%clk 0:00:18]} 49. Rd7 {[%clk 0:00:07]}  Rf3+ {[%clk 0:00:17]} 50. Ke4 {[%clk 0:00:08]}  Re3+ {[%clk 0:00:16]} 51. Kf4 {[%clk 0:00:08]}  Re6 {[%clk 0:00:16]} 52. Kf5 {[%clk 0:00:08]}  Rg6 {[%clk 0:00:15]} 53. Rd8 {[%clk 0:00:08]}  a4 {[%clk 0:00:14]} 54. Ra8 {[%clk 0:00:08]}  Rd6 {[%clk 0:00:14]} 55. Rxa4 {[%clk 0:00:08]}  d3 {[%clk 0:00:15]} 56. Ra1 {[%clk 0:00:08]}  d2 {[%clk 0:00:15]} 57. Rd1 {[%clk 0:00:09]}  c4 {[%clk 0:00:16]} 58. Ke4 {[%clk 0:00:10]}  c3 {[%clk 0:00:16]} 59. Ke3 {[%clk 0:00:10]}  c2 {[%clk 0:00:16]} 60. Rh1 {[%clk 0:00:11]}  d1=Q {[%clk 0:00:15]} 61. Rh3 {[%clk 0:00:10]}  c1=Q+ {[%clk 0:00:14]} 62. Kf2 {[%clk 0:00:11]}  Qf1+ {[%clk 0:00:13]} 63. Kg3 {[%clk 0:00:11]}  Qe3+ {[%clk 0:00:11]} 64. Kh4 {[%clk 0:00:12]}  Qfxh3# {[%clk 0:00:10]} 0-1


[Site "https://www.chess.com"]